bitfinex-derivatives/quotes_SOLF0:USTF0_20250716
["timestamp","ask_amount","ask_price","bid_price","bid_amount"]
[1752680457758,14.7181682,166.06,166.03,3.36]
[1752680458154,3.41,166.04,166.01,3.36]
[1752680458453,3.41,166.04,165.94,14.7181682]
[1752680458654,14.7181682,166.06,165.96,3.36]
[1752680458853,18.1281682,166.06,165.97,3.36]
[1752680459353,3.41,166.06,165.97,3.36]
[1752680459858,14.7181682,166.07,166.04,3.36]
[1752680460059,18.1281682,166.07,166.04,3.36]
[1752680460254,3.41,166.07,166.04,6.0204]
[1752680460457,14.7181682,166.08,166.06,3.36]
[1752680460762,14.7181682,166.08,165.94,519.92]
[1752680460763,3.41,166.12,166.03,14.7181682]
[1752680461057,14.7181682,166.12,166.05,3.36]
[1752680461255,18.1281682,166.12,166.05,3.36]
[1752680461956,3.41,166.15,166.06,3.36]
[1752680462155,519.68,166.23,166.08,14.7181682]
[1752680462358,14.7181682,166.21,166.09,3.36]
[1752680462556,14.7181682,166.21,166.11,3.36]
[1752680462751,3.41,166.22,166.11,14.7181682]
[1752680462953,3.41,166.24,166.12,3.36]
[1752680463156,3.41,166.26,166.15,3.36]
[1752680463351,161.18241955,166.29,166.18,3.36]
[1752680463762,3.41,166.29,166.18,3.36]
[1752680464159,3.41,166.29,166.19,3.36]
[1752680464859,14.7181682,166.28,166.19,3.36]
[1752680465056,3.41,166.27,166.19,3.36]
[1752680465457,3.41,166.25,166.19,3.36]
[1752680465758,3.41,166.23,166.19,3.36]
[1752680466060,14.7181682,166.25,166.18,193.72]
[1752680466061,3.41,166.21,166.18,197.08]
[1752680466360,24.1417682,166.24,166.18,199.7354]
[1752680466559,18.1281682,166.24,166.21,3.36]
[1752680466867,3.41,166.25,166.18,3.36]
[1752680467559,3.41,166.25,166.19,3.36]
[1752680468660,3.41,166.25,166.21,6.0142]
[1752680468955,3.41,166.25,166.22,3.36]
[1752680469161,9.4232,166.25,166.22,3.36]
[1752680469362,14.7181682,166.26,166.18,3.36]
[1752680469557,18.1281682,166.26,166.18,3.36]
[1752680469758,3.41,166.25,166.17,193.66]
[1752680469961,3.41,166.24,166.21,3.36]
[1752680470153,18.1281682,166.26,166.22,3.36]
[1752680470360,3.41,166.25,166.22,3.36]
[1752680470862,14.7181682,166.27,166.22,3.36]
[1752680470863,3.41,166.24,166.22,3.36]
[1752680471064,3.41,166.24,166.2,9.3749]
[1752680471362,3.41,166.24,166.18,3.36]
[1752680471762,3.41,166.24,166.19,3.36]
[1752680471960,18.1281682,166.27,166.19,3.36]
[1752680472162,6.0132,166.25,166.2,6.0148]
[1752680472357,3.41,166.25,166.22,3.36]
[1752680472560,3.41,166.27,166.19,3.36]
[1752680472761,3.41,166.27,166.24,3.36]
[1752680473061,3.41,166.26,166.19,3.36]
[1752680473961,3.41,166.26,166.18,193.62]
[1752680474165,6.0124,166.27,166.23,3.36]
[1752680474362,3.41,166.26,166.23,3.36]
[1752680475264,3.41,166.25,166.23,3.36]
[1752680475763,3.41,166.36,166.21,8.77940765]
[1752680475960,3.41,166.32,166.24,3.36]
[1752680476156,3.41,166.32,166.26,3.36]
[1752680476356,6.0107,166.32,166.27,6.0122]
[1752680476558,8.77940765,166.33,166.25,193.56]
[1752680476764,3.41,166.29,166.26,3.36]
[1752680477065,12.18940765,166.33,166.29,3.36]
[1752680477467,8.77940765,166.33,166.25,193.56]
[1752680477664,3.41,166.31,166.28,3.36]
[1752680477869,6.011,166.31,166.27,6.0121]
[1752680478069,9.421,166.31,166.28,3.36]
[1752680478362,9.421,166.31,166.22,8.77940765]
[1752680478363,9.4214,166.3,166.22,8.77940765]
[1752680478576,9.4214,166.3,166.24,3.36]
[1752680478867,8.77940765,166.29,166.26,6.0125]
[1752680479069,6.0116,166.3,166.23,193.54]
[1752680479264,519.98,166.39,166.24,8.77940765]
[1752680479470,6.0105,166.33,166.25,3.36]
[1752680479967,12.18940765,166.34,166.25,3.36]
[1752680480561,12.18940765,166.34,166.24,8.77940765]
[1752680480562,12.18940765,166.34,166.31,3.36]
[1752680480870,3.41,166.34,166.32,3.36]
[1752680481266,8.77940765,166.35,166.3,3.23]
[1752680481467,3.37,166.33,166.3,3.23]
[1752680481671,3.37,166.33,166.25,8.77940765]
[1752680481863,8.77940765,166.35,166.26,3.23]
[1752680482269,3.37,166.37,166.29,8.77940765]
[1752680482466,3.37,166.37,166.3,3.23]
[1752680482670,3.37,166.37,166.33,6.01]
[1752680482867,3.37,166.37,166.34,3.23]
[1752680483070,8.77940765,166.4,166.31,3.23]
[1752680483271,18.15690765,166.41,166.32,3.23]
[1752680483474,3.37,166.41,166.34,3.23]
[1752680483868,3.37,166.41,166.37,3.23]
[1752680483869,6.0077,166.4,166.37,3.23]
[1752680484068,3.37,166.39,166.37,3.23]
[1752680484274,3.37,166.39,166.37,9.2387]
[1752680484571,3.37,166.39,166.37,3.23]
[1752680484872,9.3781,166.39,166.37,3.23]
[1752680485070,3.37,166.39,166.37,3.23]
[1752680485467,8.77940765,166.4,166.38,3.23]
[1752680485862,8.77940765,166.41,166.39,3.23]
[1752680486075,14.78700765,166.41,166.39,3.23]
[1752680486274,8.77940765,166.41,166.39,3.23]
[1752680486469,3.37,166.42,166.39,3.23]
[1752680486674,3.37,166.42,166.32,3.23]
[1752680486974,12.14940765,166.42,166.39,6.0079]
[1752680487174,8.77940765,166.43,166.33,8.77940765]
[1752680487373,211.5107,166.52,166.3,193.5]
[1752680487374,12.14940765,166.45,166.36,3.23]
[1752680487573,12.14940765,166.39,166.37,3.23]
[1752680487766,3.37,166.38,166.36,3.23]
[1752680487975,8.77940765,166.37,166.3,3.23]
[1752680488279,1.04584592,166.51,166.3,3.23]
[1752680488280,8.77940765,166.39,166.3,3.23]
[1752680488771,12.14940765,166.39,166.36,3.23]
[1752680488971,3.37,166.42,166.32,3.23]
[1752680489472,12.14940765,166.44,166.34,3.23]
[1752680489675,3.37,166.44,166.42,6.0067]
[1752680489875,8.77940765,166.45,166.43,3.23]
[1752680490871,8.77940765,166.45,166.35,8.77940765]
[1752680491080,8.77940765,166.43,166.36,3.23]
[1752680491273,3.37,166.44,166.36,3.23]
[1752680491471,8.77940765,166.44,166.36,3.23]
[1752680491772,8.77940765,166.45,166.36,3.23]
[1752680491976,3.37,166.44,166.41,3.23]
[1752680492369,3.37,166.44,166.42,3.23]
[1752680492568,3.37,166.44,166.4,6.0074]
[1752680492569,3.37,166.44,166.35,202.13940765]
[1752680492776,8.77940765,166.5,166.35,3.23]
[1752680492777,3.37,166.42,166.35,3.23]
[1752680492970,6.007,166.42,166.35,3.23]
[1752680493279,3.37,166.44,166.35,3.23]
[1752680493479,9.3766,166.44,166.39,6.0077]
[1752680493674,3.37,166.44,166.36,3.23]
[1752680494067,12.14940765,166.45,166.35,8.77940765]
[1752680494273,12.14940765,166.45,166.42,3.23]
[1752680494472,3.37,166.44,166.38,6.0082]
[1752680494777,3.37,166.44,166.36,8.77940765]
[1752680494975,3.37,166.44,166.39,6.0077]
[1752680495174,8.77940765,166.46,166.39,3.23]
[1752680495573,8.77940765,166.46,166.36,8.77940765]
[1752680495574,3.37,166.44,166.41,3.23]
[1752680495779,3.37,166.44,166.36,8.77940765]
[1752680495975,6.0067,166.43,166.38,6.0081]
[1752680496174,3.37,166.42,166.39,3.23]
[1752680496373,3.37,166.42,166.4,3.23]
[1752680496772,3.37,166.45,166.36,3.23]
[1752680496979,8.77940765,166.44,166.36,3.23]
[1752680497174,14.78570765,166.44,166.39,6.0077]
[1752680497376,12.14940765,166.44,166.41,3.23]
[1752680497879,12.14940765,166.44,166.35,527.85940765]
[1752680497880,8.77940765,166.44,166.36,3.23]
[1752680498280,12.14940765,166.45,166.35,527.85940765]
[1752680498481,12.14940765,166.45,166.37,3.23]
[1752680498775,12.14940765,166.45,166.41,6.0073]
[1752680498985,12.14940765,166.45,166.37,3.23]
[1752680499183,8.77940765,166.45,166.38,3.23]
[1752680499383,3.37,166.44,166.38,3.23]
[1752680499979,3.37,166.42,166.4,3.23]
[1752680500279,8.77940765,166.45,166.4,3.23]
[1752680500480,3.37,166.43,166.41,3.23]
[1752680500677,12.14940765,166.43,166.36,3.23]
[1752680500880,12.14940765,166.43,166.39,6.0078]
[1752680501082,3.37,166.43,166.4,3.23]
[1752680501378,14.78530765,166.45,166.39,3.23]
[1752680501581,3.37,166.46,166.39,3.23]
[1752680501773,12.14940765,166.46,166.39,3.23]
[1752680501976,12.14940765,166.46,166.42,3.23]
[1752680501977,3.37,166.45,166.42,3.23]
[1752680502175,3.37,166.45,166.43,3.23]
[1752680502375,6.0063,166.44,166.39,6.0079]
[1752680502575,3.37,166.43,166.4,3.23]
[1752680502777,3.37,166.43,166.37,3.23]
[1752680502978,12.14940765,166.42,166.39,9.2378]
[1752680503179,3.37,166.42,166.4,3.23]
[1752680504581,3.37,166.42,166.4,9.2376]
[1752680504782,3.37,166.42,166.4,3.23]
[1752680505686,3.37,166.42,166.4,9.2375]
[1752680505988,8.77940765,166.5,166.36,193.18]
[1752680506181,8.77940765,166.44,166.42,3.23]
[1752680506486,12.14940765,166.44,166.42,3.23]
[1752680506689,12.14940765,166.44,166.41,6.0072]
[1752680506690,18.15570765,166.44,166.41,6.0072]
[1752680506877,3.37,166.43,166.4,3.23]
[1752680507076,14.78570765,166.44,166.36,193.18]
[1752680507282,18.15570765,166.44,166.41,9.2373]
[1752680507684,12.14940765,166.44,166.41,9.2373]
[1752680508083,3.37,166.43,166.41,9.2373]
[1752680508390,3.37,166.43,166.41,3.23]
[1752680508887,8.77940765,166.44,166.42,3.23]
[1752680509088,12.14940765,166.44,166.42,3.23]
[1752680509287,14.78500765,166.46,166.37,3.23]
[1752680509588,8.77940765,166.46,166.37,3.23]
[1752680509786,6.0063,166.44,166.42,3.23]
[1752680510087,6.0063,166.44,166.37,3.23]
[1752680510088,3.37,166.44,166.37,3.23]
[1752680510291,3.37,166.44,166.4,3.23]
[1752680510583,3.37,166.43,166.4,3.23]
[1752680510786,8.77940765,166.44,166.41,3.36]
[1752680510984,12.05940765,166.44,166.42,3.36]
[1752680511288,8.77940765,166.44,166.41,6.007]
[1752680511490,3.28,166.45,166.4,3.36]
[1752680511995,3.28,166.45,166.43,9.3666]
[1752680512290,8.77940765,166.46,166.43,3.36]
[1752680512585,12.0053,166.54,166.42,3.36]
[1752680512586,3.28,166.44,166.42,3.36]
[1752680512990,3.28,166.44,166.42,9.3669]
[1752680514188,3.28,166.44,166.42,3.36]
[1752680514586,3.28,166.43,166.41,3.36]
[1752680514787,3.28,166.42,166.4,193.06]
[1752680514986,3.28,166.42,166.4,196.42]
[1752680515291,3.28,166.42,166.4,202.4275]
[1752680515493,3.28,166.42,166.4,196.42]
[1752680515983,3.28,166.42,166.4,202.4274]
[1752680516598,3.28,166.42,166.41,6.0073]
[1752680516898,5.25697817,166.43,166.4,196.42]
[1752680517193,8.53697817,166.41,166.4,193.06]
[1752680517400,3.28,166.4,166.37,3.36]
[1752680517595,3.28,166.4,166.38,6.0084]
[1752680517796,3.28,166.4,166.38,9.3684]
[1752680518097,3.28,166.4,166.38,3.36]
[1752680518294,5.25697817,166.41,166.36,192.96]
[1752680518498,5.25697817,166.37,166.28,8.61697817]
[1752680518701,5.25697817,166.4,166.25,5.00459392]
[1752680518702,8.53697817,166.35,166.33,3.36]
[1752680518993,3.28,166.34,166.32,3.36]
[1752680519198,3.28,166.34,166.26,524.17697817]
[1752680519199,5.25697817,166.33,166.27,192.94]
[1752680519394,5.25697817,166.4,166.29,3.36]
[1752680519395,8.53697817,166.31,166.29,3.36]
[1752680519602,3.28,166.3,166.27,196.3]
[1752680519894,3.28,166.35,166.29,3.36]
[1752680520100,8.53697817,166.33,166.3,3.36]
[1752680520402,3.28,166.36,166.28,3.36]
[1752680520594,8.53697817,166.38,166.29,5.25697817]
[1752680520795,8.53697817,166.4,166.31,5.25697817]
[1752680521098,30.70940191,166.47,166.39,3.36]
[1752680521099,3.28,166.42,166.39,3.36]
[1752680521294,3.28,166.42,166.32,201.68292453]
[1752680521295,8.76292453,166.45,166.37,192.92]
[1752680521501,3.28,166.46,166.38,3.36]
[1752680521703,3.28,166.46,166.38,12.12292453]
[1752680521895,12.04292453,166.49,166.46,3.36]
[1752680522103,12.04292453,166.52,166.42,192.9]
[1752680522297,8.76292453,166.54,166.44,3.36]
[1752680522501,8.76292453,166.54,166.48,6.0046]
[1752680522700,8.76292453,166.54,166.45,8.76292453]
[1752680522701,3.28,166.53,166.5,3.36]
[1752680523297,8.76292453,166.54,166.5,3.36]
[1752680523497,8.76292453,166.53,166.44,3.36]
[1752680523701,8.76292453,166.53,166.48,6.0047]
[1752680523901,8.76292453,166.53,166.49,3.36]
[1752680524101,3.28,166.52,166.5,3.36]
[1752680524301,3.28,166.5,166.43,192.9]
[1752680524601,3.28,166.5,166.44,3.36]
[1752680524803,3.28,166.49,166.45,9.3659]
[1752680525004,3.28,166.49,166.46,3.36]
[1752680525304,12.04292453,166.51,166.48,3.36]
[1752680525508,3.28,166.5,166.48,3.36]
[1752680526100,3.28,166.5,166.47,3.36]
[1752680526299,8.76292453,166.51,166.46,6.0055]
[1752680526504,12.04292453,166.51,166.48,3.36]
[1752680527207,3.28,166.5,166.44,3.36]
[1752680527501,3.28,166.48,166.45,3.36]
[1752680527806,12.04292453,166.49,166.43,3.36]
[1752680527999,18.04742453,166.49,166.44,6.006]
[1752680528204,3.28,166.48,166.45,3.36]
[1752680528905,3.28,166.46,166.43,3.36]
[1752680529104,3.28,166.46,166.44,3.36]
[1752680530099,3.28,166.46,166.43,3.36]
[1752680530306,8.76292453,166.47,166.43,3.36]
[1752680530506,3.28,166.44,166.42,192.8]
[1752680530705,8.76292453,166.5,166.4,3.36]
[1752680530706,12.04292453,166.43,166.4,3.36]
[1752680531103,14.76972453,166.43,166.4,3.36]
[1752680531299,3.28,166.5,166.38,3.36]
[1752680531504,8.76292453,166.46,166.38,3.36]
[1752680531709,8.76292453,166.44,166.38,3.36]
[1752680532208,14.76942453,166.44,166.39,6.0079]
[1752680532402,18.04942453,166.44,166.41,3.36]
[1752680532604,8.76292453,166.44,166.42,3.36]
[1752680533610,18.04942453,166.44,166.42,3.36]
[1752680533807,12.04292453,166.44,166.42,3.36]
[1752680534209,8.76292453,166.44,166.42,3.36]
[1752680534511,12.04292453,166.45,166.42,3.36]
[1752680534712,12.04292453,166.45,166.38,192.7]
[1752680534913,8.76292453,166.45,166.39,3.36]
[1752680535516,8.76292453,166.47,166.39,3.36]
[1752680535711,14.76812453,166.47,166.41,6.0072]
[1752680535909,18.04812453,166.47,166.39,3.36]
[1752680536308,6.0056,166.46,166.41,6.007]
[1752680536513,3.28,166.44,166.42,3.36]
[1752680536704,3.28,166.42,166.39,3.36]
[1752680536910,8.76292453,166.41,166.39,3.36]
[1752680537204,3.28,166.4,166.38,196.06]
[1752680537410,3.28,166.4,166.38,202.0684]
[1752680537611,8.76292453,166.41,166.39,3.36]
[1752680537914,8.76292453,166.41,166.4,3.36]
[1752680538113,8.76292453,166.41,166.38,192.7]
[1752680538315,12.04292453,166.41,166.39,3.36]
[1752680538819,12.04292453,166.43,166.41,3.36]
[1752680539115,12.04292453,166.45,166.42,3.36]
[1752680540417,18.04882453,166.45,166.42,3.36]
[1752680540620,3.28,166.41,166.39,3.36]
[1752680540921,12.04292453,166.41,166.39,3.36]
[1752680541117,12.04292453,166.41,166.38,192.7]
[1752680541118,8.76292453,166.41,166.4,3.48]
[1752680541318,3.44,166.43,166.4,3.48]
[1752680541508,8.76292453,166.44,166.39,3.48]
[1752680542016,8.76292453,166.44,166.42,3.48]
[1752680542216,6.0059,166.45,166.42,3.48]
[1752680542415,3.44,166.43,166.38,192.7]
[1752680542617,8.76292453,166.44,166.4,9.4875]
[1752680542814,8.76292453,166.42,166.4,3.48]
[1752680543015,12.20292453,166.42,166.36,192.56]
[1752680543215,12.20292453,166.4,166.38,3.48]
[1752680543413,8.76292453,166.4,166.36,192.56]
[1752680543616,3.44,166.39,166.36,196.04]
[1752680544018,3.44,166.39,166.37,3.48]
[1752680544222,8.76292453,166.41,166.38,9.4884]
[1752680544425,8.76292453,166.43,166.37,3.48]
[1752680544823,3.44,166.42,166.39,9.4878]
[1752680545026,8.76292453,166.41,166.37,3.48]
[1752680545228,8.76292453,166.41,166.39,6.008]
[1752680545229,3.44,166.4,166.39,6.008]
[1752680545826,3.44,166.39,166.37,9.4886]
[1752680546024,12.20292453,166.39,166.37,3.48]
[1752680546422,8.76292453,166.45,166.42,6.0069]
[1752680546617,3.44,166.44,166.41,3.48]
[1752680546828,3.44,166.44,166.41,9.4871]
[1752680547028,12.20292453,166.43,166.37,196.0]
[1752680547326,12.20292453,166.41,166.38,3.48]
[1752680547526,8.76292453,166.41,166.39,3.48]
[1752680547727,12.20292453,166.41,166.39,3.48]
[1752680548327,8.76292453,166.41,166.4,3.48]
[1752680548523,12.20292453,166.43,166.41,3.48]
[1752680548728,12.20292453,166.43,166.36,192.5]
[1752680548729,12.20292453,166.43,166.37,3.48]
[1752680548924,12.20292453,166.41,166.36,192.5]
[1752680549127,12.20292453,166.41,166.39,3.48]
[1752680549326,12.20292453,166.41,166.37,6.0087]
[1752680549327,3.44,166.4,166.37,6.0087]
[1752680549528,3.44,166.4,166.38,3.48]
[1752680549721,8.76292453,166.39,166.37,6.0087]
[1752680550027,3.44,166.38,166.37,6.0087]
[1752680550423,8.76292453,166.39,166.38,6.0084]
[1752680550618,26.81292453,166.5,166.37,3.48]
[1752680550619,8.76292453,166.42,166.37,3.48]
[1752680550824,12.20292453,166.44,166.37,3.48]
[1752680551426,13.2875532,166.5,166.37,3.48]
[1752680551630,8.76292453,166.47,166.38,3.48]
[1752680552129,3.44,166.46,166.44,6.006]
[1752680552434,3.44,166.46,166.44,9.486]
[1752680552630,3.44,166.46,166.44,9.4862]
[1752680552830,3.44,166.46,166.44,3.48]
[1752680553025,3.44,166.46,166.36,192.5]
[1752680553026,3.44,166.45,166.38,3.48]
[1752680553236,8.76292453,166.44,166.41,6.0071]
[1752680553434,12.20292453,166.44,166.36,192.5]
[1752680553633,8.76292453,166.44,166.36,192.5]
[1752680553832,12.20292453,166.46,166.38,3.48]
[1752680554730,8.76292453,166.44,166.38,195.88]
[1752680554930,12.20292453,166.44,166.42,6.0069]
[1752680555434,12.20292453,166.44,166.42,9.4869]
[1752680555625,3.44,166.44,166.42,3.48]
[1752680556228,3.44,166.44,166.42,9.4868]
[1752680556833,6.0053,166.47,166.45,3.48]
[1752680556834,3.44,166.47,166.45,3.48]
[1752680557029,3.44,166.49,166.47,3.48]
[1752680557231,205.47007094,166.58,166.48,3.48]
[1752680557232,8.76292453,166.52,166.48,3.48]
[1752680557436,3.44,166.5,166.48,9.4847]
[1752680557631,3.44,166.5,166.48,3.48]
[1752680557835,3.44,166.5,166.48,9.4848]
[1752680558035,3.44,166.5,166.48,3.48]
[1752680558433,3.44,166.5,166.48,9.4847]
[1752680558641,3.44,166.5,166.48,3.48]
[1752680558937,3.44,166.52,166.49,3.48]
[1752680559140,14.76622453,166.53,166.49,9.4842]
[1752680559141,3.44,166.51,166.49,9.4842]
[1752680559341,3.44,166.51,166.49,3.48]
[1752680559539,8.76292453,166.51,166.48,6.0047]
[1752680559747,3.44,166.5,166.48,9.4847]
[1752680560039,3.44,166.5,166.48,9.4845]
[1752680560230,3.44,166.5,166.48,3.48]
[1752680560439,3.44,166.51,166.49,3.48]
[1752680561236,3.44,166.58,166.45,3.48]
[1752680561437,8.76292453,166.54,166.45,3.48]
[1752680561642,3.44,166.53,166.45,3.48]
[1752680561835,3.44,166.52,166.5,9.4838]
[1752680562236,3.44,166.52,166.51,3.48]
[1752680562538,3.44,166.52,166.44,8.76292453]
[1752680562735,3.44,166.52,166.45,3.48]
[1752680562941,3.44,166.51,166.49,9.4841]
[1752680563241,3.44,166.51,166.49,3.48]
[1752680564240,3.44,166.51,166.43,3.48]
[1752680564434,350.99915092,166.62,166.47,3.48]
[1752680564435,3.44,166.57,166.47,3.48]
[1752680564639,12.20292453,166.57,166.49,3.48]
[1752680565140,18.20452453,166.57,166.53,6.0028]
[1752680565339,3.44,166.54,166.47,3.48]
[1752680565540,8.76292453,166.5,166.48,3.48]
[1752680565737,8.76292453,166.5,166.41,3.48]
[1752680566039,3.44,166.45,166.43,3.48]
[1752680566240,12.20292453,166.44,166.41,9.4871]
[1752680566436,12.20292453,166.44,166.4,710.96]
[1752680566636,12.20292453,166.44,166.42,3.48]
[1752680566832,12.20292453,166.44,166.42,9.4868]
[1752680567040,12.20292453,166.44,166.42,3.48]
[1752680567234,3.44,166.46,166.41,3.48]
[1752680567539,12.20292453,166.46,166.44,9.4861]
[1752680568137,12.20292453,166.46,166.45,6.0059]
[1752680568332,8.76292453,166.46,166.45,9.4859]
[1752680568737,12.20292453,166.46,166.45,3.48]
[1752680568938,8.76292453,166.46,166.45,3.48]
[1752680569133,8.76292453,166.46,166.45,9.4859]
[1752680569337,12.20292453,166.48,166.46,3.48]
[1752680569739,3.44,166.47,166.4,710.96]
[1752680569938,3.44,166.47,166.41,3.48]
[1752680570335,12.20292453,166.46,166.41,3.48]
[1752680570642,8.76292453,166.46,166.41,3.48]
[1752680570845,8.76292453,166.46,166.45,6.0059]
[1752680571141,8.76292453,166.46,166.45,9.2959]
[1752680571646,12.04292453,166.46,166.44,9.2961]
[1752680571848,12.04292453,166.46,166.44,3.29]
[1752680573148,8.76292453,166.46,166.41,3.29]
[1752680573345,12.04292453,166.44,166.42,3.29]
[1752680573542,3.28,166.42,166.4,195.39]
[1752680573947,12.04292453,166.43,166.41,3.29]
[1752680574744,12.04292453,166.43,166.42,6.007]
[1752680575143,3.28,166.45,166.42,3.29]
[1752680575346,8.76292453,166.5,166.43,6.0064]
[1752680575347,8.76292453,166.46,166.43,6.0064]
[1752680575549,3.28,166.45,166.43,9.2964]
[1752680575951,12.04292453,166.44,166.42,6.0068]
[1752680576146,12.04292453,166.44,166.42,9.2968]
[1752680576447,12.04292453,166.44,166.42,3.29]
[1752680576848,3.28,166.43,166.42,3.29]
[1752680577046,8.76292453,166.44,166.42,3.29]
[1752680577244,3.28,166.43,166.42,3.29]
[1752680577444,3.28,166.43,166.42,6.007]
[1752680577645,3.28,166.42,166.34,3.29]
[1752680577956,8.76292453,166.36,166.35,9.2995]
[1752680578146,12.04292453,166.36,166.35,6.0095]
[1752680578950,8.76292453,166.36,166.35,9.2995]
[1752680579445,3.28,166.38,166.32,518.8]
[1752680579446,12.04292453,166.38,166.32,518.8]
[1752680579651,12.04292453,166.38,166.36,3.29]
[1752680579849,201.7075532,166.49,166.32,518.8]
[1752680580044,8.76292453,166.39,166.33,3.29]
[1752680580249,8.76292453,166.39,166.38,6.0084]
[1752680580445,12.04292453,166.39,166.38,6.0084]
[1752680580952,3.28,166.38,166.37,6.0086]
[1752680581152,27.8975532,166.49,166.33,3.29]
[1752680581453,8.76292453,166.38,166.37,6.0087]
[1752680581653,12.04292453,166.38,166.35,3.29]
[1752680581949,8.76292453,166.38,166.32,518.8]
[1752680582152,12.04292453,166.38,166.33,3.29]
[1752680582353,12.04292453,166.38,166.37,6.0088]
[1752680582548,8.76292453,166.4,166.38,3.29]
[1752680582749,8.76292453,166.4,166.39,3.29]
[1752680582951,8.76292453,166.4,166.39,9.2981]
[1752680583254,12.04292453,166.4,166.37,3.29]
[1752680583447,12.04292453,166.4,166.38,3.29]
[1752680583643,12.04292453,166.4,166.38,9.2981]
[1752680585146,8.76292453,166.41,166.35,191.82]
[1752680585353,12.04292453,166.41,166.36,3.29]
[1752680585749,12.04292453,166.41,166.39,6.0079]
[1752680586055,12.04292453,166.41,166.39,9.2979]
[1752680586253,8.76292453,166.41,166.4,3.29]
[1752680586452,12.04292453,166.43,166.4,3.29]
[1752680586652,9.8475532,166.49,166.4,3.29]
[1752680586653,12.04292453,166.45,166.4,3.29]
[1752680586849,3.28,166.45,166.4,3.29]
[1752680587048,3.28,166.46,166.45,6.0058]
[1752680587247,3.28,166.46,166.45,9.2958]
[1752680587454,3.28,166.45,166.43,3.29]
[1752680587756,12.04292453,166.47,166.41,3.29]
[1752680588057,3.28,166.46,166.44,9.296]
[1752680588453,8.76292453,166.45,166.38,6.0084]
[1752680588648,8.76292453,166.45,166.39,191.72]
[1752680588949,9.8475532,166.52,166.4,3.29]
[1752680589155,12.04292453,166.49,166.4,3.29]
[1752680590049,12.04292453,166.49,166.41,3.29]
[1752680590254,3.28,166.5,166.4,20.77822453]
[1752680590455,3.28,166.49,166.47,3.29]
[1752680590657,3.28,166.49,166.47,9.2948]
[1752680590957,3.28,166.48,166.4,3.29]
[1752680591153,3.28,166.48,166.47,6.0052]
[1752680591357,3.28,166.49,166.39,200.48292453]
[1752680591561,8.76292453,166.5,166.4,3.29]
[1752680591754,8.76292453,166.5,166.48,6.0046]
[1752680591956,12.04292453,166.5,166.48,9.2946]
[1752680592155,8.76292453,166.5,166.48,3.29]
[1752680592351,3.28,166.49,166.41,8.76292453]
[1752680592555,3.28,166.49,166.42,3.29]
[1752680593351,3.28,166.5,166.49,6.0045]
[1752680593858,3.28,166.5,166.41,8.76292453]
[1752680594053,8.76292453,166.5,166.41,8.76292453]
[1752680594259,12.04292453,166.5,166.42,3.29]
[1752680594460,3.28,166.49,166.42,3.29]